[Event "*** Titled Tuesday 3|2 Blitz"]
[Site "Chess.com"]
[Date "2015.12.01"]
[Round "6"]
[White "LyonBeast"]
[Black "swayamsm"]
[Result "1-0"]
[WhiteElo "2735"]
[BlackElo "2457"]
[TimeControl "180+2"]
[EndTime "12:14:54 PST"]
[Termination "LyonBeast won by resignation"]

1. d4 {[%clk 0:03:01.9]} 1... e6 {[%clk 0:03:00.4]} 2. Nf3 {[%clk 0:03:00.4]}
2... Nf6 {[%clk 0:03:00.2]} 3. c4 {[%clk 0:02:56.3]} 3... b6 {[%clk 0:03:00.6]}
4. e3 {[%clk 0:02:55.2]} 4... Bb7 {[%clk 0:03:01.8]} 5. Bd3 {[%clk 0:02:55.6]}
5... Be7 {[%clk 0:02:59]} 6. Nc3 {[%clk 0:02:55.1]} 6... d5 {[%clk 0:02:57.4]}
7. b3 {[%clk 0:02:49.7]} 7... O-O {[%clk 0:02:58.3]} 8. O-O {[%clk 0:02:49.1]}
8... Nbd7 {[%clk 0:02:45]} 9. Bb2 {[%clk 0:02:48.1]} 9... c5 {[%clk 0:02:39.2]}
10. Rc1 {[%clk 0:02:47.3]} 10... Rc8 {[%clk 0:02:35.5]} 11. Qe2 {[%clk
0:02:47.2]} 11... Re8 {[%clk 0:02:28.7]} 12. Rfd1 {[%clk 0:02:43]} 12... Qc7
{[%clk 0:02:23.6]} 13. dxc5 {[%clk 0:02:40.8]} 13... dxc4 {[%clk 0:02:09.1]} 14.
Bxc4 {[%clk 0:02:23.1]} 14... Qxc5 {[%clk 0:02:07.9]} 15. Nb5 {[%clk 0:02:14.2]}
15... a6 {[%clk 0:01:42.2]} 16. Na7 {[%clk 0:01:59.4]} 16... Rcd8 {[%clk
0:01:21.3]} 17. Bxa6 {[%clk 0:01:45.7]} 17... Bxf3 {[%clk 0:01:16.3]} 18. gxf3
{[%clk 0:01:42.3]} 18... Qg5+ {[%clk 0:01:11.2]} 19. Kh1 {[%clk 0:01:43.1]}
19... Nc5 {[%clk 0:01:01.1]} 20. Rg1 {[%clk 0:01:36.3]} 20... Qh5 {[%clk
0:01:00.4]} 21. Bb5 {[%clk 0:01:24.2]} 21... Rf8 {[%clk 0:00:20.1]} 22. Nc6
{[%clk 0:01:22.7]} 22... Bd6 {[%clk 0:00:21.5]} 23. Rg2 {[%clk 0:01:12.9]} 23...
e5 {[%clk 0:00:20.1]} 24. Nxd8 {[%clk 0:01:10.4]} 24... Rxd8 {[%clk 0:00:22]}
25. Rd1 {[%clk 0:01:11]} 25... g6 {[%clk 0:00:19.5]} 26. f4 {[%clk 0:01:07.8]}
26... Qxe2 {[%clk 0:00:08.8]} 27. Bxe2 {[%clk 0:01:09.7]} 27... Nfe4 {[%clk
0:00:05.1]} 28. fxe5 {[%clk 0:01:08.9]} 28... Be7 {[%clk 0:00:05.4]} 29. Rxd8+
{[%clk 0:01:09.2]} 29... Bxd8 {[%clk 0:00:07.3]} 30. f3 {[%clk 0:01:09.5]} 30...
Ng5 {[%clk 0:00:06]} 31. b4 {[%clk 0:01:08.8]} 1-0

[Event "*** Titled Tuesday 3|2 Blitz"]
[Site "Chess.com"]
[Date "2015.12.01"]
[Round "6"]
[White "Haridaskesavan"]
[Black "AndreyOstrovskiy"]
[Result "0-1"]
[WhiteElo "2081"]
[BlackElo "2429"]
[TimeControl "180+2"]
[EndTime "12:14:56 PST"]
[Termination "AndreyOstrovskiy won by checkmate"]

1. a3 {[%clk 0:03:01.9]} 1... e5 {[%clk 0:03:00.4]} 2. g3 {[%clk 0:03:02.9]}
2... d5 {[%clk 0:03:00.5]} 3. Bg2 {[%clk 0:03:04]} 3... c6 {[%clk 0:03:01.4]} 4.
e3 {[%clk 0:03:05.4]} 4... Bd6 {[%clk 0:03:00.3]} 5. Ne2 {[%clk 0:03:06.6]} 5...
h5 {[%clk 0:02:58.8]} 6. d4 {[%clk 0:03:07.7]} 6... e4 {[%clk 0:02:59.3]} 7. h4
{[%clk 0:03:06.5]} 7... Bg4 {[%clk 0:02:59.3]} 8. c4 {[%clk 0:03:05.2]} 8... Nd7
{[%clk 0:02:57.9]} 9. Nbc3 {[%clk 0:03:06]} 9... Ne7 {[%clk 0:02:57.8]} 10. b4
{[%clk 0:03:06.1]} 10... Nf6 {[%clk 0:02:51.7]} 11. Qb3 {[%clk 0:03:06.3]} 11...
O-O {[%clk 0:02:47.8]} 12. Bb2 {[%clk 0:03:06.9]} 12... a6 {[%clk 0:02:47.6]}
13. Nf4 {[%clk 0:02:38.8]} 13... Bxf4 {[%clk 0:02:47.6]} 14. gxf4 {[%clk
0:02:38.7]} 14... Nf5 {[%clk 0:02:45]} 15. c5 {[%clk 0:02:11.6]} 15... Ne8
{[%clk 0:02:40.3]} 16. Kd2 {[%clk 0:01:58.7]} 16... Nxh4 {[%clk 0:02:33.7]} 17.
Rh2 {[%clk 0:01:58.3]} 17... Nxg2 {[%clk 0:02:33.2]} 18. Rxg2 {[%clk 0:01:58.8]}
18... Nc7 {[%clk 0:02:27]} 19. Rag1 {[%clk 0:01:53.8]} 19... Ne6 {[%clk
0:02:25.6]} 20. Ne2 {[%clk 0:01:51.4]} 20... g6 {[%clk 0:02:13.4]} 21. Qd1
{[%clk 0:01:45.5]} 21... Ng7 {[%clk 0:02:13.8]} 22. Qf1 {[%clk 0:01:44]} 22...
Nf5 {[%clk 0:02:14.2]} 23. Ng3 {[%clk 0:01:41.9]} 23... Nh4 {[%clk 0:02:14.6]}
24. Kc3 {[%clk 0:01:28.8]} 24... Nxg2 {[%clk 0:02:03]} 25. Qxg2 {[%clk
0:01:29.4]} 25... a5 {[%clk 0:02:02.7]} 26. f5 {[%clk 0:01:27.9]} 26... axb4+
{[%clk 0:02:03.5]} 27. axb4 {[%clk 0:01:28.4]} 27... b6 {[%clk 0:02:01.8]} 28.
Qh2 {[%clk 0:01:11.5]} 28... Qb8 {[%clk 0:01:48.1]} 29. Qh4 {[%clk 0:01:08.6]}
29... bxc5 {[%clk 0:01:11]} 30. dxc5 {[%clk 0:00:41.4]} 30... Ra2 {[%clk
0:01:03.2]} 31. Kb3 {[%clk 0:00:18.3]} 31... Rxb2+ {[%clk 0:01:03.8]} 32. Kxb2
{[%clk 0:00:18.8]} 32... Qxb4+ {[%clk 0:01:04.7]} 33. Kc2 {[%clk 0:00:20.1]}
33... Qxc5+ {[%clk 0:01:05.1]} 34. Kd2 {[%clk 0:00:21]} 34... Qb4+ {[%clk
0:01:05.9]} 35. Kc2 {[%clk 0:00:21.9]} 35... Qc4+ {[%clk 0:01:07]} 36. Kd2
{[%clk 0:00:23]} 36... Qd3+ {[%clk 0:01:08.2]} 37. Ke1 {[%clk 0:00:24.2]} 37...
Qd1# {[%clk 0:01:09.5]} 0-1

[Event "*** Titled Tuesday 3|2 Blitz"]
[Site "Chess.com"]
[Date "2015.12.01"]
[Round "6"]
[White "jefferyx"]
[Black "Tesla37"]
[Result "1-0"]
[WhiteElo "2579"]
[BlackElo "2525"]
[TimeControl "180+2"]
[EndTime "12:15:12 PST"]
[Termination "jefferyx won by resignation"]

1. d4 {[%clk 0:03:01.9]} 1... d5 {[%clk 0:03:00.1]} 2. c4 {[%clk 0:03:02.6]}
2... c6 {[%clk 0:03:01.7]} 3. Nf3 {[%clk 0:03:03.6]} 3... Nf6 {[%clk 0:03:03.2]}
4. Nc3 {[%clk 0:03:04.4]} 4... a6 {[%clk 0:03:04.2]} 5. Qc2 {[%clk 0:03:05]}
5... g6 {[%clk 0:02:59.9]} 6. e4 {[%clk 0:03:03.9]} 6... dxe4 {[%clk 0:02:58]}
7. Nxe4 {[%clk 0:03:05.8]} 7... Nxe4 {[%clk 0:02:57.4]} 8. Qxe4 {[%clk
0:03:07.7]} 8... Bg7 {[%clk 0:02:58.4]} 9. Bf4 {[%clk 0:02:24.9]} 9... Bf5
{[%clk 0:02:56.4]} 10. Qe3 {[%clk 0:02:26.1]} 10... Nd7 {[%clk 0:02:47.6]} 11.
O-O-O {[%clk 0:02:25.5]} 11... O-O {[%clk 0:02:41.5]} 12. h3 {[%clk 0:02:22.5]}
12... Qa5 {[%clk 0:02:32.4]} 13. g4 {[%clk 0:02:21.3]} 13... Be6 {[%clk
0:02:31.2]} 14. Kb1 {[%clk 0:02:19.9]} 14... Nb6 {[%clk 0:02:04.2]} 15. b3
{[%clk 0:02:10.9]} 15... Qb4 {[%clk 0:01:54.9]} 16. Qd2 {[%clk 0:01:25.4]} 16...
Qxd2 {[%clk 0:01:54.7]} 17. Rxd2 {[%clk 0:01:27.3]} 17... Rac8 {[%clk
0:01:55.4]} 18. Bg2 {[%clk 0:01:23.9]} 18... Rfd8 {[%clk 0:01:56.1]} 19. Re1
{[%clk 0:01:23]} 19... Kf8 {[%clk 0:01:56.6]} 20. Ng5 {[%clk 0:01:23.5]} 20...
Bd7 {[%clk 0:01:43.6]} 21. Nxh7+ {[%clk 0:01:22.4]} 21... Kg8 {[%clk 0:01:44.3]}
22. Ng5 {[%clk 0:01:23.3]} 22... e6 {[%clk 0:01:40.8]} 23. Ne4 {[%clk
0:01:23.2]} 23... Be8 {[%clk 0:01:25.6]} 24. Nd6 {[%clk 0:01:22.5]} 24... Ra8
{[%clk 0:01:26.7]} 25. Red1 {[%clk 0:00:49.1]} 25... Rd7 {[%clk 0:01:25.5]} 26.
Ne4 {[%clk 0:00:49.1]} 26... Rad8 {[%clk 0:01:19.8]} 27. Bg5 {[%clk 0:00:48.6]}
27... Rc8 {[%clk 0:01:12.8]} 28. Nc5 {[%clk 0:00:47.5]} 28... Rdc7 {[%clk
0:01:02.3]} 29. Bf4 {[%clk 0:00:48.3]} 29... e5 {[%clk 0:01:00.8]} 30. Bxe5
{[%clk 0:00:49.3]} 30... Bxe5 {[%clk 0:01:00.5]} 31. dxe5 {[%clk 0:00:51.2]}
31... Kf8 {[%clk 0:01:01.5]} 32. f4 {[%clk 0:00:51.8]} 32... Re7 {[%clk
0:00:58.6]} 33. Ne4 {[%clk 0:00:50.3]} 33... a5 {[%clk 0:00:56.8]} 34. Nf6
{[%clk 0:00:48.1]} 34... a4 {[%clk 0:00:51.5]} 35. h4 {[%clk 0:00:44.8]} 35...
Ra8 {[%clk 0:00:46.7]} 36. Rd8 {[%clk 0:00:44.8]} 36... axb3 {[%clk 0:00:47.7]}
37. axb3 {[%clk 0:00:44.4]} 37... Rxd8 {[%clk 0:00:43.4]} 38. Rxd8 {[%clk
0:00:45]} 38... Nd7 {[%clk 0:00:38.1]} 39. Nxe8 {[%clk 0:00:45.2]} 1-0

[Event "*** Titled Tuesday 3|2 Blitz"]
[Site "Chess.com"]
[Date "2015.12.01"]
[Round "6"]
[White "ZEN-22"]
[Black "alex_zapata"]
[Result "1-0"]
[WhiteElo "2248"]
[BlackElo "2158"]
[TimeControl "180+2"]
[EndTime "12:15:14 PST"]
[Termination "ZEN-22 won by resignation"]

1. d3 {[%clk 0:02:42.1]} 1... d5 {[%clk 0:02:59.9]} 2. Nd2 {[%clk 0:02:43.8]}
2... e5 {[%clk 0:03:00.3]} 3. e4 {[%clk 0:02:45.4]} 3... Nf6 {[%clk 0:03:01.1]}
4. Ngf3 {[%clk 0:02:45.2]} 4... Nc6 {[%clk 0:02:59.9]} 5. exd5 {[%clk
0:02:46.6]} 5... Nxd5 {[%clk 0:03:00.8]} 6. g3 {[%clk 0:02:48]} 6... Be6 {[%clk
0:02:59.7]} 7. Bg2 {[%clk 0:02:48.7]} 7... Bd6 {[%clk 0:02:59.6]} 8. O-O {[%clk
0:02:47.7]} 8... O-O {[%clk 0:03:01]} 9. Re1 {[%clk 0:02:47.3]} 9... f6 {[%clk
0:03:00.3]} 10. d4 {[%clk 0:02:48.2]} 10... Bf7 {[%clk 0:02:37.3]} 11. c4 {[%clk
0:02:46.9]} 11... Ndb4 {[%clk 0:02:35.9]} 12. c5 {[%clk 0:02:47.5]} 12... Be7
{[%clk 0:02:32.7]} 13. Nb3 {[%clk 0:02:43.5]} 13... Nxd4 {[%clk 0:02:17.6]} 14.
Nbxd4 {[%clk 0:02:34.1]} 14... exd4 {[%clk 0:02:19.5]} 15. a3 {[%clk 0:02:25.1]}
15... Nc6 {[%clk 0:02:07.3]} 16. b4 {[%clk 0:02:25.3]} 16... a6 {[%clk
0:02:06.7]} 17. Bb2 {[%clk 0:02:25.5]} 17... d3 {[%clk 0:02:02.8]} 18. Re3
{[%clk 0:02:23.8]} 18... Bc4 {[%clk 0:01:48]} 19. Nd2 {[%clk 0:02:24]} 19... Bf7
{[%clk 0:01:42.6]} 20. Nf3 {[%clk 0:02:20.1]} 20... Bc4 {[%clk 0:01:42.7]} 21.
Rc1 {[%clk 0:02:20.2]} 21... Bf7 {[%clk 0:01:20.4]} 22. Rxd3 {[%clk 0:02:19.5]}
22... Qc8 {[%clk 0:01:21.5]} 23. h4 {[%clk 0:02:13.7]} 23... Rd8 {[%clk
0:01:21.1]} 24. Rcc3 {[%clk 0:02:11]} 24... Qf5 {[%clk 0:01:15]} 25. Qe2 {[%clk
0:02:05.4]} 25... Bg6 {[%clk 0:00:54]} 26. Re3 {[%clk 0:01:43.9]} 26... Bf8
{[%clk 0:00:47.6]} 27. Kh2 {[%clk 0:01:44.6]} 27... Bh5 {[%clk 0:00:40.2]} 28.
Bh3 {[%clk 0:01:39.6]} 28... Bg4 {[%clk 0:00:41.2]} 29. Bxg4 {[%clk 0:01:33.6]}
29... Qxg4 {[%clk 0:00:43.1]} 30. Rc4 {[%clk 0:01:35]} 30... Qf5 {[%clk
0:00:40.8]} 31. Rf4 {[%clk 0:01:35.2]} 31... Qg6 {[%clk 0:00:36.4]} 32. Nd4
{[%clk 0:01:29.5]} 32... Ne5 {[%clk 0:00:33.4]} 33. h5 {[%clk 0:01:26.6]} 33...
Qg5 {[%clk 0:00:31.8]} 34. Ne6 {[%clk 0:01:25.4]} 34... Qh6 {[%clk 0:00:26.9]}
35. Nxd8 {[%clk 0:01:23.6]} 35... Rxd8 {[%clk 0:00:28.8]} 36. Bxe5 {[%clk
0:01:23.8]} 36... fxe5 {[%clk 0:00:28.9]} 37. Rxe5 {[%clk 0:01:24.8]} 37... b6
{[%clk 0:00:13.6]} 38. Qc4+ {[%clk 0:01:18.5]} 38... Kh8 {[%clk 0:00:13.7]} 39.
Qf7 {[%clk 0:01:18.9]} 39... g6 {[%clk 0:00:11.1]} 40. Re8 {[%clk 0:01:17.5]}
40... Rxe8 {[%clk 0:00:10.8]} 41. Qxe8 {[%clk 0:01:17.9]} 41... Kg8 {[%clk
0:00:12.2]} 42. Qf7+ {[%clk 0:01:17]} 1-0

[Event "*** Titled Tuesday 3|2 Blitz"]
[Site "Chess.com"]
[Date "2015.12.01"]
[Round "6"]
[White "DaPazz"]
[Black "AnimationDomination"]
[Result "1-0"]
[WhiteElo "1820"]
[BlackElo "1741"]
[TimeControl "180+2"]
[EndTime "12:15:59 PST"]
[Termination "DaPazz won by resignation"]

1. d4 {[%clk 0:03:01.8]} 1... Nf6 {[%clk 0:03:00]} 2. c4 {[%clk 0:02:59.7]} 2...
g6 {[%clk 0:02:49.5]} 3. Nc3 {[%clk 0:02:55.8]} 3... Bg7 {[%clk 0:02:50]} 4. Bg5
{[%clk 0:02:54.7]} 4... d6 {[%clk 0:02:50.1]} 5. Qd2 {[%clk 0:02:51.5]} 5...
Nbd7 {[%clk 0:02:48.4]} 6. Bh6 {[%clk 0:02:49]} 6... O-O {[%clk 0:02:49]} 7.
Bxg7 {[%clk 0:02:45.1]} 7... Kxg7 {[%clk 0:02:50.9]} 8. g3 {[%clk 0:02:45.4]}
8... e5 {[%clk 0:02:50.3]} 9. Bg2 {[%clk 0:02:44.1]} 9... c6 {[%clk 0:02:49.3]}
10. Nf3 {[%clk 0:02:38.6]} 10... Qc7 {[%clk 0:02:42.5]} 11. dxe5 {[%clk
0:02:35.9]} 11... dxe5 {[%clk 0:02:40.3]} 12. O-O {[%clk 0:02:35.1]} 12... Nh5
{[%clk 0:02:35]} 13. Rfd1 {[%clk 0:02:29.4]} 13... f5 {[%clk 0:02:31.9]} 14. e4
{[%clk 0:02:20.2]} 14... f4 {[%clk 0:02:23.9]} 15. g4 {[%clk 0:02:12]} 15...
Nhf6 {[%clk 0:02:23.4]} 16. h3 {[%clk 0:02:12.3]} 16... b6 {[%clk 0:02:08.2]}
17. Rac1 {[%clk 0:02:00.9]} 17... Ba6 {[%clk 0:02:04.6]} 18. Ng5 {[%clk
0:01:59.4]} 18... Rfe8 {[%clk 0:01:44.5]} 19. b3 {[%clk 0:01:56]} 19... h6
{[%clk 0:01:39.6]} 20. Nf3 {[%clk 0:01:46.6]} 20... Rad8 {[%clk 0:01:35.1]} 21.
Qb2 {[%clk 0:01:43.5]} 21... g5 {[%clk 0:01:28.4]} 22. Rd2 {[%clk 0:01:38.3]}
22... Nc5 {[%clk 0:01:12.2]} 23. Rcd1 {[%clk 0:01:35.6]} 23... Rxd2 {[%clk
0:00:58.1]} 24. Nxd2 {[%clk 0:01:27]} 24... Ne6 {[%clk 0:00:42.1]} 25. Ne2
{[%clk 0:01:20.3]} 25... c5 {[%clk 0:00:36.8]} 26. Nc3 {[%clk 0:01:16.1]} 26...
Nd4 {[%clk 0:00:36.6]} 27. Nd5 {[%clk 0:01:11.3]} 27... Qd6 {[%clk 0:00:32.8]}
28. Nxf6 {[%clk 0:01:04.8]} 28... Qxf6 {[%clk 0:00:33]} 29. f3 {[%clk
0:01:05.3]} 29... Ne2+ {[%clk 0:00:32.7]} 30. Kf2 {[%clk 0:01:04.4]} 30... Nd4
{[%clk 0:00:33.5]} 31. Nb1 {[%clk 0:01:02.8]} 31... Rd8 {[%clk 0:00:34.7]} 32.
Nc3 {[%clk 0:01:02.6]} 32... Qe6 {[%clk 0:00:34.4]} 33. Nd5 {[%clk 0:01:02.7]}
33... Bb7 {[%clk 0:00:35.5]} 34. Rh1 {[%clk 0:00:58.3]} 34... Rd6 {[%clk
0:00:30.7]} 35. h4 {[%clk 0:00:58.3]} 35... Rd8 {[%clk 0:00:30.5]} 36. hxg5
{[%clk 0:00:57.8]} 36... hxg5 {[%clk 0:00:32.4]} 37. Rh5 {[%clk 0:00:57.7]}
37... Ba8 {[%clk 0:00:21.5]} 38. Qb1 {[%clk 0:00:54.5]} 38... Qg6 {[%clk
0:00:21.2]} 39. Qh1 {[%clk 0:00:53.7]} 39... Bxd5 {[%clk 0:00:21.4]} 40. cxd5
{[%clk 0:00:51.1]} 40... Rg8 {[%clk 0:00:22.3]} 41. Bf1 {[%clk 0:00:51.3]} 41...
Kf7 {[%clk 0:00:22]} 42. Rh7+ {[%clk 0:00:48.2]} 42... Rg7 {[%clk 0:00:23.4]}
43. Rh6 {[%clk 0:00:48.5]} 1-0

[Event "*** Titled Tuesday 3|2 Blitz"]
[Site "Chess.com"]
[Date "2015.12.01"]
[Round "6"]
[White "dretch"]
[Black "GMharikrishna"]
[Result "0-1"]
[WhiteElo "2406"]
[BlackElo "2534"]
[TimeControl "180+2"]
[EndTime "12:16:09 PST"]
[Termination "GMharikrishna won by resignation"]

1. d4 {[%clk 0:03:01.9]} 1... d5 {[%clk 0:03:00.1]} 2. c4 {[%clk 0:03:03.1]}
2... c6 {[%clk 0:02:57.3]} 3. Nf3 {[%clk 0:03:03.1]} 3... Nf6 {[%clk 0:02:58.3]}
4. Nc3 {[%clk 0:03:04]} 4... e6 {[%clk 0:02:57.9]} 5. cxd5 {[%clk 0:03:02.2]}
5... exd5 {[%clk 0:02:58.5]} 6. Bg5 {[%clk 0:03:01.2]} 6... Be7 {[%clk
0:02:59.2]} 7. e3 {[%clk 0:02:59.3]} 7... Nbd7 {[%clk 0:02:58.7]} 8. Qc2 {[%clk
0:02:57.2]} 8... Nf8 {[%clk 0:02:59.6]} 9. Bd3 {[%clk 0:02:57.6]} 9... Ne6
{[%clk 0:03:00.4]} 10. Bh4 {[%clk 0:02:56.9]} 10... g6 {[%clk 0:03:00.3]} 11. h3
{[%clk 0:02:52.8]} 11... O-O {[%clk 0:03:00.4]} 12. O-O-O {[%clk 0:02:52.4]}
12... b5 {[%clk 0:03:00.6]} 13. Kb1 {[%clk 0:02:52.2]} 13... a5 {[%clk
0:02:59.5]} 14. Ne5 {[%clk 0:02:53.1]} 14... Bb7 {[%clk 0:02:55.7]} 15. f4
{[%clk 0:02:53.3]} 15... Ng7 {[%clk 0:02:48.8]} 16. f5 {[%clk 0:02:52]} 16...
Nd7 {[%clk 0:02:48]} 17. Bxe7 {[%clk 0:02:50.3]} 17... Qxe7 {[%clk 0:02:49.9]}
18. Nxd7 {[%clk 0:02:51.6]} 18... Qxd7 {[%clk 0:02:51.1]} 19. g4 {[%clk
0:02:52.5]} 19... Rae8 {[%clk 0:02:49.1]} 20. Qf2 {[%clk 0:02:51.7]} 20... Qd6
{[%clk 0:02:38]} 21. h4 {[%clk 0:02:51.1]} 21... gxf5 {[%clk 0:02:16.5]} 22. h5
{[%clk 0:02:51.8]} 22... f4 {[%clk 0:01:11.2]} 23. exf4 {[%clk 0:02:48.7]} 23...
Re7 {[%clk 0:01:10.7]} 24. g5 {[%clk 0:02:44.9]} 24... Bc8 {[%clk 0:01:08.9]}
25. f5 {[%clk 0:02:41.6]} 25... f6 {[%clk 0:01:09.7]} 26. g6 {[%clk 0:02:36.9]}
26... h6 {[%clk 0:01:10.4]} 27. Qd2 {[%clk 0:02:37.9]} 27... Nxf5 {[%clk
0:01:08.4]} 28. Rhf1 {[%clk 0:02:16.3]} 28... Ne3 {[%clk 0:01:02]} 29. g7 {[%clk
0:02:17.8]} 29... Rff7 {[%clk 0:00:47.5]} 30. Rg1 {[%clk 0:02:04.3]} 30... Rxg7
{[%clk 0:00:25.9]} 31. Rxg7+ {[%clk 0:01:55.8]} 31... Kxg7 {[%clk 0:00:27]} 32.
Rg1+ {[%clk 0:01:57.3]} 32... Ng4 {[%clk 0:00:27.7]} 33. Bc2 {[%clk 0:01:53.5]}
33... f5 {[%clk 0:00:25.9]} 34. Ne2 {[%clk 0:01:45]} 34... Qh2 {[%clk
0:00:23.9]} 35. Rxg4+ {[%clk 0:01:24.2]} 35... fxg4 {[%clk 0:00:24]} 36. Qd3
{[%clk 0:01:26.1]} 36... Qh1+ {[%clk 0:00:16.2]} 37. Nc1 {[%clk 0:01:26.7]}
37... Qxh5 {[%clk 0:00:17.3]} 38. Qh7+ {[%clk 0:01:26.8]} 38... Kf6 {[%clk
0:00:17.5]} 39. Qh8+ {[%clk 0:01:27]} 39... Kg5 {[%clk 0:00:16.9]} 40. Qxc8
{[%clk 0:01:18.3]} 40... Kh4 {[%clk 0:00:17.6]} 41. Qxc6 {[%clk 0:01:17.6]}
41... Re1 {[%clk 0:00:17.7]} 42. Qf6+ {[%clk 0:01:17.7]} 42... Kh3 {[%clk
0:00:10.8]} 43. Qf2 {[%clk 0:01:17.7]} 43... Qh4 {[%clk 0:00:11.5]} 44. Qd2
{[%clk 0:01:16.2]} 44... Rg1 {[%clk 0:00:07.5]} 45. Bd3 {[%clk 0:01:15.7]} 45...
Qg5 {[%clk 0:00:04.8]} 46. Qc3 {[%clk 0:01:04.9]} 46... Qxc1+ {[%clk 0:00:05.5]}
47. Qxc1 {[%clk 0:01:05]} 47... Rxc1+ {[%clk 0:00:07.4]} 48. Kxc1 {[%clk
0:01:06.9]} 48... g3 {[%clk 0:00:09.1]} 0-1

[Event "*** Titled Tuesday 3|2 Blitz"]
[Site "Chess.com"]
[Date "2015.12.01"]
[Round "6"]
[White "Zvonokchess"]
[Black "1stSecond"]
[Result "0-1"]
[WhiteElo "2537"]
[BlackElo "2439"]
[TimeControl "180+2"]
[EndTime "12:16:19 PST"]
[Termination "1stSecond won by resignation"]

1. Nf3 {[%clk 0:03:01.9]} 1... Nf6 {[%clk 0:03:00.7]} 2. g3 {[%clk 0:03:02.9]}
2... g6 {[%clk 0:03:01.7]} 3. Bg2 {[%clk 0:03:04.1]} 3... Bg7 {[%clk 0:03:03.6]}
4. O-O {[%clk 0:03:05.3]} 4... O-O {[%clk 0:03:05.2]} 5. d4 {[%clk 0:03:06.4]}
5... d6 {[%clk 0:03:03.2]} 6. c4 {[%clk 0:03:06.7]} 6... c6 {[%clk 0:03:01.9]}
7. Nc3 {[%clk 0:03:07.7]} 7... a5 {[%clk 0:03:01.2]} 8. e4 {[%clk 0:02:55.2]}
8... Na6 {[%clk 0:03:02.2]} 9. Re1 {[%clk 0:02:38.6]} 9... Nd7 {[%clk
0:02:47.5]} 10. e5 {[%clk 0:02:33.2]} 10... dxe5 {[%clk 0:02:48]} 11. dxe5
{[%clk 0:02:34.2]} 11... Ndc5 {[%clk 0:02:48.2]} 12. Bg5 {[%clk 0:02:28.8]}
12... Re8 {[%clk 0:02:44.2]} 13. Qxd8 {[%clk 0:02:28.7]} 13... Rxd8 {[%clk
0:02:45.2]} 14. Bxe7 {[%clk 0:02:29.9]} 14... Re8 {[%clk 0:02:46.4]} 15. Bd6
{[%clk 0:02:24.3]} 15... Be6 {[%clk 0:02:31.9]} 16. b3 {[%clk 0:02:20.5]} 16...
a4 {[%clk 0:02:32.8]} 17. b4 {[%clk 0:02:08]} 17... Nd3 {[%clk 0:02:33.5]} 18.
Re3 {[%clk 0:02:08.3]} 18... Ndxb4 {[%clk 0:02:32.1]} 19. Rb1 {[%clk 0:02:07.6]}
19... c5 {[%clk 0:02:27.4]} 20. Ng5 {[%clk 0:02:02.9]} 20... Bxc4 {[%clk
0:02:21.7]} 21. Bxb7 {[%clk 0:02:03.6]} 21... Ra7 {[%clk 0:02:22.3]} 22. Bg2
{[%clk 0:01:59.4]} 22... Nc2 {[%clk 0:02:18.8]} 23. Re4 {[%clk 0:01:46.3]} 23...
Nd4 {[%clk 0:02:03.1]} 24. Rd1 {[%clk 0:01:33.6]} 24... a3 {[%clk 0:01:37.7]}
25. Bxc5 {[%clk 0:01:06.9]} 25... Nxc5 {[%clk 0:01:38.2]} 26. Rexd4 {[%clk
0:01:08.4]} 26... Be6 {[%clk 0:01:26.8]} 27. f4 {[%clk 0:01:09]} 27... f6 {[%clk
0:01:14.8]} 28. Rd8 {[%clk 0:01:00.8]} 28... Re7 {[%clk 0:01:09.7]} 29. Nd5
{[%clk 0:00:40.4]} 29... fxg5 {[%clk 0:00:32.9]} 30. Nxe7+ {[%clk 0:00:40.6]}
30... Kf7 {[%clk 0:00:34.8]} 31. Nc6 {[%clk 0:00:20.1]} 31... gxf4 {[%clk
0:00:32.6]} 32. gxf4 {[%clk 0:00:14.9]} 32... Bxa2 {[%clk 0:00:32.1]} 33. Bd5+
{[%clk 0:00:15.8]} 33... Bxd5 {[%clk 0:00:30.8]} 34. R8xd5 {[%clk 0:00:17.2]}
34... Ne6 {[%clk 0:00:30.7]} 35. Nd8+ {[%clk 0:00:18.1]} 35... Nxd8 {[%clk
0:00:17.7]} 36. Rxd8 {[%clk 0:00:20]} 36... Rxd8 {[%clk 0:00:19]} 37. Rxd8
{[%clk 0:00:20.9]} 37... Bh6 {[%clk 0:00:20.4]} 38. Rd7+ {[%clk 0:00:09.4]}
38... Ke6 {[%clk 0:00:21.3]} 39. Rxh7 {[%clk 0:00:09.7]} 39... Bxf4 {[%clk
0:00:22.3]} 40. Ra7 {[%clk 0:00:09.8]} 40... Be3+ {[%clk 0:00:23.4]} 41. Kf1
{[%clk 0:00:10.1]} 41... Bxa7 {[%clk 0:00:25.3]} 0-1

[Event "*** Titled Tuesday 3|2 Blitz"]
[Site "Chess.com"]
[Date "2015.12.01"]
[Round "6"]
[White "FabianEnglert"]
[Black "Saitama_Hero"]
[Result "0-1"]
[WhiteElo "2292"]
[BlackElo "2135"]
[TimeControl "180+2"]
[EndTime "12:16:26 PST"]
[Termination "Saitama_Hero won on time"]

1. Nf3 {[%clk 0:03:01.9]} 1... Nf6 {[%clk 0:03:01.2]} 2. g3 {[%clk 0:03:02.9]}
2... g6 {[%clk 0:03:02.6]} 3. b4 {[%clk 0:03:04.5]} 3... Bg7 {[%clk 0:03:04.5]}
4. Bb2 {[%clk 0:03:06.1]} 4... O-O {[%clk 0:03:00.1]} 5. Bg2 {[%clk 0:03:07.4]}
5... d5 {[%clk 0:03:00.4]} 6. O-O {[%clk 0:03:07.9]} 6... c6 {[%clk 0:03:00.5]}
7. d3 {[%clk 0:03:09]} 7... Bg4 {[%clk 0:02:51.2]} 8. Nbd2 {[%clk 0:03:09.7]}
8... Nbd7 {[%clk 0:02:46.6]} 9. c4 {[%clk 0:03:09.5]} 9... a5 {[%clk 0:02:25.8]}
10. b5 {[%clk 0:03:09.1]} 10... cxb5 {[%clk 0:02:17.2]} 11. cxb5 {[%clk
0:03:11]} 11... a4 {[%clk 0:01:57.5]} 12. Rb1 {[%clk 0:02:51.7]} 12... Re8
{[%clk 0:01:52.2]} 13. h3 {[%clk 0:02:52.4]} 13... Bxf3 {[%clk 0:01:45.7]} 14.
Nxf3 {[%clk 0:02:54.3]} 14... e5 {[%clk 0:01:44]} 15. Ba3 {[%clk 0:02:46.7]}
15... Qb6 {[%clk 0:01:41.5]} 16. e3 {[%clk 0:02:37.8]} 16... Ra5 {[%clk
0:01:37.6]} 17. Bb4 {[%clk 0:02:17.5]} 17... Rxb5 {[%clk 0:01:35.6]} 18. Qxa4
{[%clk 0:02:18.1]} 18... Bf8 {[%clk 0:01:29.5]} 19. Bc5 {[%clk 0:02:11.5]} 19...
Rxc5 {[%clk 0:00:45.6]} 20. Rxb6 {[%clk 0:02:11.3]} 20... Nxb6 {[%clk
0:00:47.5]} 21. Qa7 {[%clk 0:02:04.1]} 21... Nfd7 {[%clk 0:00:34.7]} 22. Rb1
{[%clk 0:02:01.7]} 22... Ra8 {[%clk 0:00:34.2]} 23. Qxb7 {[%clk 0:02:03]} 23...
Rb8 {[%clk 0:00:31.8]} 24. Rxb6 {[%clk 0:01:41.7]} 24... Rxb7 {[%clk 0:00:30.5]}
25. Rxb7 {[%clk 0:01:43.6]} 25... Rc1+ {[%clk 0:00:30.8]} 26. Kh2 {[%clk
0:01:44.4]} 26... Nc5 {[%clk 0:00:32.6]} 27. Rb5 {[%clk 0:00:48.2]} 27... Nxd3
{[%clk 0:00:33.3]} 28. Rxd5 {[%clk 0:00:48.4]} 28... Nxf2 {[%clk 0:00:34.9]} 29.
Nxe5 {[%clk 0:00:49.7]} 29... Rc2 {[%clk 0:00:33.5]} 30. a4 {[%clk 0:00:47.7]}
30... Ne4 {[%clk 0:00:27.6]} 31. a5 {[%clk 0:00:39.4]} 31... Ra2 {[%clk
0:00:22.2]} 32. Kg1 {[%clk 0:00:27]} 32... Nc3 {[%clk 0:00:19.7]} 33. Rd8 {[%clk
0:00:25.4]} 33... Ne2+ {[%clk 0:00:14.7]} 34. Kh2 {[%clk 0:00:22.4]} 34... Kg7
{[%clk 0:00:15.9]} 35. Ra8 {[%clk 0:00:21.2]} 35... Bd6 {[%clk 0:00:16.2]} 36.
Re8 {[%clk 0:00:12.5]} 36... f6 {[%clk 0:00:13]} 0-1